lending/lending_fUSD_20240411
["ID","MTS","AMOUNT","RATE_DAILY","PERIOD"]
[322148495,1712850650115,-641.25,0.00032876,2]
[322148496,1712850650125,-767.3,0.00032876,2]
[322148497,1712850650134,-500.0,0.00032876,2]
[322148498,1712850650144,-500.0,0.00032876,2]
[322148499,1712850650154,-454.74741291,0.00032876,2]
[322148500,1712850650164,-531.39,0.00032876,2]
[322148501,1712850650173,-500.0,0.00032876,2]
[322148502,1712850650182,-1453.97,0.00032876,2]
[322148503,1712850650192,-500.0,0.00032876,2]
[322148504,1712850650202,-500.0,0.00032876,2]
[322148505,1712850650212,-638.99,0.00032876,2]
[322148506,1712850650226,-511.63152908,0.00032876,2]
[322148507,1712850650236,-500.0,0.00032876,2]
[322148508,1712850650246,-500.0,0.00032876,2]
[322148509,1712850650255,-10492.01,0.00032876,2]
[322148510,1712850650266,-500.0,0.00032876,2]
[322148511,1712850650275,-467.34472512,0.00032876,2]
[322148512,1712850650285,-1571.17,0.00032876,2]
[322148513,1712850650295,-500.0,0.00032876,2]
[322148514,1712850650305,-500.0,0.00032876,2]
[322148515,1712850650315,-538.17622459,0.00032876,2]
[322148516,1712850650326,-500.0,0.00032876,2]
[322148517,1712850650336,-719.04,0.00032876,2]
[322148518,1712850650346,-500.0,0.00032876,2]
[322148519,1712850650356,-532.08,0.00032876,2]
[322148520,1712850650366,-500.0,0.00032876,2]
[322148521,1712850650376,-500.0,0.00032876,2]
[322148522,1712850650385,-2365.06,0.00032876,2]
[322148523,1712850650395,-500.0,0.00032876,2]
[322148524,1712850650405,-500.0,0.00032876,2]
[322148525,1712850650415,-500.0,0.00032876,2]
[322148526,1712850650425,-500.0,0.00032876,2]
[322148527,1712850650435,-500.0,0.00032876,2]
[322148528,1712850650444,-1715.29,0.00032876,2]
[322148529,1712850650454,-862.04,0.00032876,2]
[322148530,1712850650466,-531.14,0.00032876,2]
[322148531,1712850650476,-502.43555582,0.00032876,2]
[322148532,1712850650485,-500.0,0.00032876,2]
[322148533,1712850650495,-671.82,0.00032876,2]
[322148534,1712850650505,-500.0,0.00032876,2]
[322148535,1712850650515,-500.0,0.00032876,2]
[322148536,1712850650525,-45354.24,0.00032876,2]
[322148537,1712850650535,-780.18,0.00032876,2]
[322148538,1712850650545,-500.0,0.00032876,2]
[322148539,1712850650555,-500.0,0.00032876,2]
[322148540,1712850650565,-500.0,0.00032876,2]
[322148541,1712850650574,-500.0,0.00032876,2]
[322148542,1712850650585,-1167.97,0.00032876,2]
[322148543,1712850650595,-500.0,0.00032876,2]
[322148544,1712850650605,-500.0,0.00032876,2]
[322148545,1712850650615,-640.12,0.00032876,2]
[322148546,1712850650624,-727.66,0.00032876,2]
[322148547,1712850650634,-500.0,0.00032876,2]
[322148548,1712850650643,-500.0,0.00032876,2]
[322148549,1712850650653,-4399.22,0.00032876,2]
[322148550,1712850650663,-500.0,0.00032876,2]
[322148551,1712850650672,-500.0,0.00032876,2]
[322148552,1712850650683,-510.20091217,0.00032876,2]
[322148553,1712850650693,-500.36856594,0.00032876,2]
[322148554,1712850650702,-500.0,0.00032876,2]
[322148555,1712850650712,-516.72,0.00032876,2]
[322148556,1712850650724,-500.0,0.00032876,2]
[322148557,1712850650734,-500.0,0.00032876,2]
[322148558,1712850650744,-537.27840593,0.00032876,2]
[322148559,1712850650754,-7279.69,0.00032876,2]
[322148560,1712850650768,-500.0,0.00032876,2]
[322148561,1712850650777,-1648.79,0.00032876,2]
[322148562,1712850650787,-3389.88,0.00032876,2]
[322148563,1712850650798,-817.64,0.00032876,2]
[322148564,1712850650808,-500.0,0.00032876,2]
[322148565,1712850650818,-500.0,0.00032876,2]
[322148566,1712850650829,-500.0,0.00032876,2]
[322148567,1712850650840,-4508.57,0.00032876,2]
[322148568,1712850650850,-1102.83941449,0.00032876,2]
[322148569,1712850651749,-237.05058551,0.00032876,2]
[322148570,1712850651760,-962.93759589,0.00032876,2]
[322148571,1712850651776,-269.637,0.00032876,2]
[322148572,1712850651789,-1075.94540411,0.00032876,2]
[322148573,1712850651800,-500.0,0.00032876,2]
[322148574,1712850651811,-500.0,0.00032876,2]
[322148575,1712850651821,-1454.99153933,0.00032876,2]
[322148576,1712850651834,-1466.49158544,0.00032876,2]
[322148577,1712850651848,-2341.20687523,0.00032876,2]
[322148578,1712850651858,-500.0,0.00032876,2]
[322148579,1712850651867,-194.3990526,0.00032876,2]
[322148580,1712850651881,-214.26130826,0.00032876,2]
[322148581,1712850651890,-500.0,0.00032876,2]
[322148582,1712850651900,-500.0,0.00032876,2]
[322148583,1712850651910,-500.0,0.00032876,2]
[322148584,1712850651919,-500.0,0.00032876,2]
[322148585,1712850651929,-507.95009627,0.00032876,2]
[322148586,1712850651939,-500.0,0.00032876,2]
[322148587,1712850651949,-500.0,0.00032876,2]
[322148588,1712850651958,-500.0,0.00032876,2]
[322148589,1712850651972,-500.0,0.00032876,2]
[322148590,1712850651982,-2715.34,0.00032876,2]
[322148591,1712850651992,-500.0,0.00032876,2]
[322148592,1712850652002,-3848.39,0.00032876,2]
[322148593,1712850652012,-500.0,0.00032876,2]
[322148594,1712850652021,-500.0,0.00032876,2]
[322148595,1712850652031,-631.65,0.00032876,2]
[322148596,1712850652041,-744.34,0.00032876,2]
[322148597,1712850652051,-3891.6,0.00032876,2]
[322148598,1712850652061,-333.04266099,0.00032876,2]
[322148599,1712850652091,-668.88871393,0.00032876,2]
[322148600,1712850652945,-418.77604318,0.00032799,4]
[322148601,1712850653042,-1008.45939849,0.00032799,4]
[322148602,1712850653052,-509.20245172,0.00032876,2]
[322148603,1712850653142,-717.64617336,0.00032876,2]
[322148604,1712850653152,-827.59,0.00032876,2]
[322148605,1712850653162,-4663.31,0.00032876,2]
[322148606,1712850653172,-924.54934842,0.00032876,2]
[322148607,1712850653188,-549.36065158,0.00032876,2]
[322148608,1712850653198,-802.51,0.00032876,2]
[322148609,1712850653207,-1171.45,0.00032876,2]
[322148610,1712850653218,-500.0,0.00032876,2]
[322148611,1712850653228,-500.0,0.00032876,2]
[322148612,1712850653237,-1450.1,0.00032876,2]
[322148613,1712850653247,-1693.34,0.00032876,2]
[322148614,1712850653256,-628.81,0.00032876,2]
[322148615,1712850653266,-500.0,0.00032876,2]
[322148616,1712850653275,-500.0,0.00032876,2]
[322148617,1712850653284,-3029.41,0.00032876,2]
[322148618,1712850653294,-500.0,0.00032876,2]
[322148619,1712850653303,-723.39,0.00032876,2]
[322148620,1712850653313,-2401.67,0.00032876,2]
[322148621,1712850653322,-514.76075623,0.00032876,2]
[322148622,1712850653331,-1666.66,0.00032876,2]
[322148623,1712850653341,-503.31902981,0.00032876,2]
[322148624,1712850653350,-1066.49,0.00032876,2]
[322148625,1712850653361,-171.39981525,0.00032876,2]
[322148626,1712850653370,-568.4,0.00032876,2]
[322148627,1712850653378,-1052.21,0.00032876,2]
[322148628,1712850653388,-500.0,0.00032876,2]
[322148629,1712850653397,-1822.94058431,0.00032876,2]
[322148630,1712850653416,-2698.03941569,0.00032876,2]
[322148631,1712850653426,-2265.43,0.00032876,2]
[322148632,1712850653436,-500.0,0.00032876,2]
[322148633,1712850653445,-500.0,0.00032876,2]
[322148634,1712850653455,-500.0,0.00032876,2]
[322148635,1712850653465,-2391.64965631,0.00032876,2]
[322148636,1712850653480,-1920.65034369,0.00032876,2]
[322148637,1712850653489,-500.0,0.00032876,2]
[322148638,1712850653499,-500.0,0.00032876,2]
[322148639,1712850653509,-500.0,0.00032876,2]
[322148640,1712850653518,-5489.81,0.00032876,2]
[322148641,1712850653527,-2454.6,0.00032876,2]
[322148642,1712850653536,-500.0,0.00032876,2]
[322148643,1712850653546,-500.0,0.00032876,2]
[322148644,1712850653555,-693.02,0.00032876,2]
[322148645,1712850653565,-500.0,0.00032876,2]
[322148646,1712850653575,-500.0,0.00032876,2]
[322148647,1712850653584,-500.0,0.00032876,2]
[322148648,1712850653594,-3980.04,0.00032876,2]
[322148649,1712850653603,-520.98007992,0.00032876,2]
[322148650,1712850653613,-1139.06,0.00032876,2]
[322148651,1712850653622,-1198.22,0.00032876,2]
[322148652,1712850653632,-500.0,0.00032876,2]
[322148653,1712850653641,-2165.88,0.00032876,2]
[322148654,1712850653651,-500.0,0.00032876,2]
[322148655,1712850653660,-3513.84858343,0.00032876,2]
[322148656,1712850653684,-404.20345887,0.00032876,2]
[322148657,1712850687620,3695.7674,0.00020978,4]
[322148658,1712850785439,65655.07396315,0.000189,2]
[322148659,1712850849715,328.08571668,0.0003352,30]
[322148660,1712850858299,3449.72900386,0.0002,2]
[322148661,1712850976355,158.78563688,0.0002041,2]
[322148662,1712851250574,377.2,0.00019555,2]
[322148663,1712851605536,1254.8389125,0.00020799,5]
[322148664,1712851608900,1501.0,0.00020474,2]
[322148667,1712851635522,156.24,0.00020474,2]
[322148752,1712851678486,1000.0,0.00020474,2]
[322148758,1712851832073,-1062.27095016,0.00020504,2]
[322148760,1712851832086,-1779.77445173,0.00020505,2]
[322148762,1712851832097,-150.0,0.0002051,2]
[322148764,1712851832107,-150.0,0.0002051,2]
[322148766,1712851832118,-13587.9260033,0.00020511,2]
[322148767,1712851832128,-477.66,0.00020651,2]
[322148768,1712851832139,-4864.917,0.000207,2]
[322148769,1712851832148,-1015.7167,0.000207,2]
[322148770,1712851832159,-735.3395049,0.000207,2]
[322148771,1712851832170,-1000.0,0.000207,2]
[322148772,1712851832182,-2500.0,0.000207,2]
[322148773,1712851832191,-6100.85945468,0.000207,2]
[322148774,1712851832201,-321.16043679,0.000207,2]
[322148775,1712851832211,-155.47530298,0.00020798,2]
[322148776,1712851832220,-953.7472112,0.00020798,2]
[322148777,1712851832230,-29023.8735,0.00020799,2]
[322148778,1712851832240,-348.6267,0.00020799,2]
[322148779,1712851832251,-6005.6242496,0.000208,2]
[322148780,1712851832264,-9767.44222373,0.000208,2]
[322148781,1712851832276,-858.49621984,0.000208,2]
[322148782,1712851832314,-1381.6578,0.000208,2]
[322148783,1712851832326,-400.0,0.000208,2]
[322148784,1712851832346,-499.72856,0.000208,2]
[322148785,1712851832358,-70236.82879269,0.000208,2]
[322148786,1712851832386,-27485.28848468,0.000208,2]
[322148787,1712851832409,-499.2998041,0.000208,2]
[322148788,1712851832429,-275184.85778118,0.000208,2]
[322148789,1712851832438,-158.78563688,0.000208,2]
[322148790,1712851832448,-188.96211589,0.000208,2]
[322148791,1712851832457,-3217.779,0.000208,2]
[322148793,1712851832466,-6303.12057847,0.000208,2]
[322148795,1712851832476,-152.77070344,0.000208,2]
[322148797,1712851832485,-1986.90826034,0.000208,2]
[322148798,1712851832494,-11506.74869429,0.000208,2]
[322148800,1712851832503,-150.0,0.0002088,2]
[322148802,1712851832512,-150.99,0.0002088,2]
[322148803,1712851832523,-136756.73396639,0.00020899,2]
[322148842,1712851838795,-316.62,0.00020899,2]
[322148844,1712851838808,-404.89884308,0.00020899,2]
[322148845,1712851838820,-1744.79999976,0.00020899,2]
[322148846,1712851838831,-766.29818179,0.00020899,2]
[322148847,1712851838843,-2549.95370295,0.00020899,2]
[322148848,1712851838859,-4813.22150999,0.00020899,2]
[322148850,1712851839608,-351247.56433043,0.00020899,2]
[322148853,1712851839618,-534199.76823755,0.000209,3]
[322148855,1712851839629,-4780.93074194,0.000209,2]
[322148857,1712851839638,-207.51996343,0.000209,3]
[322148859,1712851839647,-339.97499414,0.000209,2]
[322148861,1712851839657,-305.70629037,0.000209,2]
[322148863,1712851839666,-23890.0,0.00020991,2]
[322148865,1712851839675,-465.05097873,0.00020999,2]
[322148867,1712851839685,-283.40538467,0.00021,2]
[322148869,1712851839696,-2323814.0275767,0.00021,2]
[322148871,1712851839705,-57143.55333118,0.00021,2]
[322148873,1712851839715,-178.18,0.00021,2]
[322148874,1712851839725,-357.73,0.00021,2]
[322148876,1712851839734,-2209.24532718,0.00021,2]
[322148878,1712851839743,-858170.67060282,0.00021,2]
[322148880,1712851839752,-550.0,0.00021,3]
[322148882,1712851839761,-160.6,0.00021085,2]
[322148884,1712851839771,-160.6,0.00021305,2]
[322148886,1712851839780,-182.0,0.00021441,2]
[322148888,1712851839789,-182.0,0.00021494,2]
[322148890,1712851839799,-160.6,0.00021524,2]
[322148891,1712851839809,-182.0,0.00021548,2]
[322148892,1712851839818,-160.6,0.00021744,2]
[322148893,1712851839827,-377.2,0.00021818,2]
[322148895,1712851839836,-250.0,0.00021918,2]
[322148897,1712851839845,-250.0,0.00021918,2]
[322148900,1712851839854,-160.6,0.00021964,2]
[322148902,1712851839864,-783.81607988,0.00022,2]
[322148905,1712851839873,-160.6,0.00022184,2]
[322148907,1712851839883,-6303.12057839,0.00022337,2]
[322148909,1712851839892,-167.35,0.00022369,2]
[322148911,1712851839901,-6100.8594546,0.00022407,2]
[322148913,1712851839910,-735.33950487,0.00022593,2]
[322148915,1712851839919,-181.27,0.0002266,2]
[322148917,1712851839929,-225.0,0.00022866,2]
[322148919,1712851839938,-307.11461416,0.00023,2]
[322148921,1712851839947,-600.0,0.00023,3]
[322148923,1712851839957,-1000.0,0.00023033,2]
[322148926,1712851839967,-1501.0,0.00023213,2]
[322148928,1712851839976,-1986.90826033,0.00023794,2]
[322148930,1712851839986,-6303.12057839,0.00023874,2]
[322148932,1712851839996,-377.2,0.00024082,2]
[322148934,1712851840005,-6100.8594546,0.00024114,2]
[322148936,1712851840015,-152.77070344,0.00024166,2]
[322148938,1712851840025,-181.27,0.00024263,2]
[322148940,1712851840034,-735.33950487,0.00024485,2]
[322148942,1712851840043,-2014.28390047,0.000248,2]
[322148944,1712851840053,-9921.11000002,0.00024921,2]
[322148946,1712851840062,-1361.79189436,0.00025,2]
[322148948,1712851840071,-650.0,0.00025,3]
[322148950,1712851840080,-3490.0,0.000251,2]
[322148952,1712851840094,-616.0,0.000251,2]
[322148954,1712851840103,-6303.12057839,0.00025411,2]
[322148956,1712851840113,-1000.0,0.00025592,2]
[322148958,1712851840122,-305.808,0.00025664,2]
[322148960,1712851840131,-4796.0,0.00025664,2]
[322148962,1712851840143,-573.534,0.00025664,2]
[322148963,1712851840152,-5711.0,0.00025664,2]
[322148964,1712851840162,-2463.0,0.00025664,2]
[322148965,1712851840172,-1076.589,0.00025664,2]
[322148966,1712851840183,-6100.8594546,0.00025821,2]
[322148967,1712851840193,-181.27,0.00025866,2]
[322148968,1712851840202,-1501.0,0.00025953,2]
[322148969,1712851840212,-444.10021711,0.00026,2]
[322148970,1712851840222,-377.2,0.00026346,2]
[322148971,1712851840231,-735.33950487,0.00026378,3]
[322148972,1712851840241,-321.16043679,0.00026552,2]
[322148973,1712851840251,-1986.90826033,0.00026788,2]
[322148974,1712851840260,-6303.12057839,0.00026948,2]
[322148975,1712851840270,-700.0,0.00027,3]
[322148976,1712851840279,-211.42,0.00027397,2]
[322148977,1712851840289,-181.27,0.00027468,2]
[322148978,1712851840299,-6100.8594546,0.00027528,2]
[322148979,1712851840309,-152.77070344,0.00027532,2]
[322148980,1712851840319,-1000.0,0.00028151,2]
[322148981,1712851840328,-4780.93074193,0.00028208,2]
[322148982,1712851840339,-339.97499414,0.00028208,2]
[322148983,1712851840348,-305.70629036,0.00028208,2]
[322148984,1712851840358,-735.33950487,0.00028271,4]
[322148985,1712851840367,-6303.12057839,0.00028485,2]
[322148986,1712851840377,-377.2,0.0002861,2]
[322148987,1712851840386,-483.44724555,0.00028942,5]
[322148988,1712851840395,-750.0,0.00029,3]
[322148989,1712851840404,-6100.8594546,0.00029236,2]
[322148990,1712851840414,-445.48310641,0.000295,3]
[322148991,1712851840423,-1986.90826033,0.00029782,2]
[322148992,1712851840433,-5669.53624761,0.0003,2]
[322148993,1712851840443,-5995.80667374,0.0003,2]
[322148994,1712851840452,-40716.56200869,0.0003,3]
[322148995,1712851840461,-6303.12057839,0.00030023,2]
[322148996,1712851840471,-511.0,0.0003011,2]
[322148997,1712851840480,-539.0,0.0003011,2]
[322148998,1712851840489,-735.33950487,0.00030164,4]
[322148999,1712851840498,-1000.0,0.0003071,2]
[322149000,1712851840507,-377.2,0.00030874,2]
[322149001,1712851840517,-152.77070344,0.00030898,2]
[322149002,1712851840526,-6100.8594546,0.00030943,2]
[322149003,1712851840535,-800.0,0.00031,3]
[322149004,1712851840544,-166.36,0.00031137,2]
[322149005,1712851840553,-511.0,0.0003148,2]
[322149006,1712851840563,-539.0,0.0003148,2]
[322149007,1712851840572,-6303.12057839,0.0003156,3]
[322149008,1712851840581,-357.73,0.000316,2]
[322149009,1712851840590,-199.925267,0.00032055,14]
[322149010,1712851840601,-735.33950487,0.00032056,5]
[322149011,1712851840611,-482.0,0.00032332,5]
[322149012,1712851840620,-321.16043679,0.00032404,2]
[322149013,1712851840632,-907.18380046,0.00032561,5]
[322149014,1712851840642,-1235.29,0.00032603,2]
[322149015,1712851840652,-656.24,0.00032603,2]
[322149016,1712851840661,-6100.8594546,0.0003265,2]
[322149017,1712851840670,-500.0,0.00032698,2]
[322149018,1712851840680,-1000.0,0.00032698,2]
[322149019,1712851840689,-6481.6967,0.00032698,2]
[322149020,1712851840699,-10000.0,0.00032776,2]
[322149021,1712851840708,-1603.06650925,0.00032776,4]
[322149022,1712851840718,-1986.90826033,0.00032776,2]
[322149023,1712851840727,-189.98655532,0.00032798,4]
[322149024,1712851840737,-568.40808012,0.00032799,4]
[322149025,1712851840746,-511.0,0.00032849,2]
[322149026,1712851840755,-299.08,0.00032866,10]
[322149027,1712851840764,-1830.85054705,0.00032873,4]
[322149028,1712851840773,-198.02048487,0.00032874,4]
[322149029,1712851840782,-157.68997505,0.00032874,4]
[322149030,1712851840791,-223.89922122,0.00032874,4]
[322149031,1712851840801,-1248.1231469,0.00032874,30]
[322149032,1712851840810,-155.0,0.00032874,4]
[322149033,1712851840819,-155.23176943,0.00032874,4]
[322149034,1712851840829,-233.20418876,0.00032875,4]
[322149035,1712851840839,-500.0,0.00032876,2]
[322149036,1712851840850,-500.0,0.00032876,2]
[322149037,1712851840860,-768.96,0.00032876,2]
[322149038,1712851840869,-306.21014491,0.00032876,2]
[322149039,1712851840881,-500.0,0.00032876,2]
[322149040,1712851840890,-500.0,0.00032876,2]
[322149041,1712851840899,-500.0,0.00032876,2]
[322149042,1712851840909,-500.0,0.00032876,2]
[322149043,1712851840919,-500.0,0.00032876,2]
[322149044,1712851840930,-500.0,0.00032876,2]
[322149045,1712851840940,-500.0,0.00032876,2]
[322149046,1712851840950,-192.44736294,0.00032876,2]
[322149047,1712851840962,-500.0,0.00032876,2]
[322149048,1712851840972,-500.0,0.00032876,2]
[322149049,1712851840982,-500.0,0.00032876,2]
[322149050,1712851840994,-500.0,0.00032876,2]
[322149051,1712851841004,-500.0,0.00032876,2]
[322149052,1712851841013,-500.0,0.00032876,2]
[322149053,1712851841023,-500.0,0.00032876,2]
[322149054,1712851841033,-532.1,0.00032876,2]
[322149055,1712851841043,-500.0,0.00032876,2]
[322149056,1712851841053,-582.14,0.00032876,2]
[322149057,1712851841062,-372.88056091,0.00032876,2]
[322149058,1712851841072,-500.0,0.00032876,2]
[322149059,1712851841081,-500.0,0.00032876,2]
[322149060,1712851841093,-500.0,0.00032876,2]
[322149061,1712851841103,-500.0,0.00032876,2]
[322149062,1712851841112,-463.43261214,0.00032876,2]
[322149063,1712851841122,-500.0,0.00032876,2]
[322149064,1712851841132,-572.33719913,0.00032876,2]
[322149065,1712851841141,-527.59961969,0.00032876,2]
[322149066,1712851841151,-500.0,0.00032876,2]
[322149067,1712851841160,-500.0,0.00032876,2]
[322149068,1712851841171,-500.0,0.00032876,2]
[322149069,1712851841181,-500.0,0.00032876,2]
[322149070,1712851841190,-500.0,0.00032876,2]
[322149071,1712851841199,-500.0,0.00032876,2]
[322149072,1712851841209,-500.0,0.00032876,2]
[322149073,1712851841218,-500.0,0.00032876,2]
[322149074,1712851841227,-501.34,0.00032876,2]
[322149075,1712851841236,-500.0,0.00032876,2]
[322149076,1712851841246,-500.0,0.00032876,2]
[322149077,1712851841255,-292.88186923,0.00032876,2]
[322149078,1712851841265,-500.0,0.00032876,2]
[322149079,1712851841274,-500.0,0.00032876,2]
[322149080,1712851841283,-500.0,0.00032876,2]
[322149081,1712851841293,-1245.05,0.00032876,2]
[322149082,1712851841303,-500.0,0.00032876,2]
[322149083,1712851841312,-500.0,0.00032876,2]
[322149084,1712851841322,-627.1,0.00032876,2]
[322149085,1712851841331,-500.0,0.00032876,2]
[322149086,1712851841340,-500.0,0.00032876,2]
[322149087,1712851841349,-500.0,0.00032876,2]
[322149088,1712851841358,-539.89,0.00032876,2]
[322149089,1712851841368,-500.0,0.00032876,2]
[322149090,1712851841379,-500.0,0.00032876,2]
[322149091,1712851841388,-500.0,0.00032876,2]
[322149092,1712851841398,-500.0,0.00032876,2]
[322149093,1712851841407,-500.0,0.00032876,2]
[322149094,1712851841417,-500.0,0.00032876,2]
[322149095,1712851841426,-1083.57,0.00032876,2]
[322149096,1712851841435,-500.0,0.00032876,2]
[322149097,1712851841445,-500.0,0.00032876,2]
[322149098,1712851841456,-500.0,0.00032876,2]
[322149099,1712851841466,-500.0,0.00032876,2]
[322149100,1712851841475,-558.46,0.00032876,2]
[322149101,1712851841486,-541.62,0.00032876,2]
[322149102,1712851841495,-500.0,0.00032876,2]
[322149103,1712851841505,-500.0,0.00032876,2]
[322149104,1712851841514,-500.0,0.00032876,2]
[322149105,1712851841534,-465.43754232,0.00032876,2]
[322149106,1712851841546,-344.62986979,0.00032876,2]
[322149107,1712851841558,-500.0,0.00032876,2]
[322149108,1712851841567,-500.0,0.00032876,2]
[322149109,1712851841577,-500.0,0.00032876,2]
[322149110,1712851841587,-503.76,0.00032876,2]
[322149111,1712851841596,-500.0,0.00032876,2]
[322149112,1712851841605,-500.0,0.00032876,2]
[322149113,1712851841615,-500.0,0.00032876,2]
[322149114,1712851841626,-500.0,0.00032876,2]
[322149115,1712851841635,-542.27006129,0.00032876,2]
[322149116,1712851841644,-500.0,0.00032876,2]
[322149117,1712851841654,-545.63,0.00032876,2]
[322149118,1712851841663,-500.0,0.00032876,2]
[322149119,1712851841675,-714.85,0.00032876,2]
[322149120,1712851841684,-1246.36,0.00032876,2]
[322149121,1712851841694,-500.0,0.00032876,2]
[322149122,1712851841703,-515.58,0.00032876,2]
[322149123,1712851841714,-500.0,0.00032876,2]
[322149124,1712851841724,-500.0,0.00032876,2]
[322149125,1712851841733,-500.0,0.00032876,2]
[322149126,1712851841743,-500.0,0.00032876,2]
[322149127,1712851841754,-500.0,0.00032876,2]
[322149128,1712851841764,-644.06,0.00032876,2]
[322149129,1712851841774,-1061.43,0.00032876,2]
[322149130,1712851841783,-500.0,0.00032876,2]
[322149131,1712851841793,-656.63,0.00032876,2]
[322149132,1712851841803,-500.0,0.00032876,2]
[322149133,1712851841813,-500.0,0.00032876,2]
[322149134,1712851841825,-500.0,0.00032876,2]
[322149135,1712851841836,-500.0,0.00032876,2]
[322149136,1712851841848,-500.0,0.00032876,2]
[322149137,1712851841857,-205.85034716,0.00032876,2]
[322149138,1712851841867,-500.0,0.00032876,2]
[322149139,1712851841876,-500.0,0.00032876,2]
[322149140,1712851841886,-918.18,0.00032876,2]
[322149141,1712851841896,-500.0,0.00032876,2]
[322149142,1712851841906,-628.90989534,0.00032876,2]
[322149143,1712851841916,-500.0,0.00032876,2]
[322149144,1712851841926,-500.0,0.00032876,2]
[322149145,1712851841935,-501.96579492,0.00032876,2]
[322149146,1712851841946,-500.0,0.00032876,2]
[322149147,1712851841962,-1105.32,0.00032876,2]
[322149148,1712851841972,-317.0217785,0.00032876,2]
[322149149,1712851841982,-500.0,0.00032876,2]
[322149150,1712851841993,-500.0,0.00032876,2]
[322149151,1712851842004,-500.0,0.00032876,2]
[322149152,1712851842015,-500.0,0.00032876,2]
[322149153,1712851842025,-500.0,0.00032876,2]
[322149154,1712851842035,-500.0,0.00032876,2]
[322149155,1712851842046,-500.0,0.00032876,2]
[322149156,1712851842056,-500.0,0.00032876,2]
[322149157,1712851842066,-400.0,0.00032876,2]
[322149158,1712851842077,-500.0,0.00032876,2]
[322149159,1712851842090,-500.0,0.00032876,2]
[322149160,1712851842103,-500.0,0.00032876,2]
[322149161,1712851842113,-500.0,0.00032876,2]
[322149162,1712851842126,-500.0,0.00032876,2]
[322149163,1712851842137,-500.0,0.00032876,2]
[322149164,1712851842148,-507.29,0.00032876,2]
[322149165,1712851842159,-500.0,0.00032876,2]
[322149166,1712851842170,-500.0,0.00032876,2]
[322149167,1712851842181,-516.08,0.00032876,2]
[322149168,1712851842192,-557.30818852,0.00032876,2]
[322149169,1712851842203,-500.0,0.00032876,2]
[322149170,1712851842215,-506.37,0.00032876,2]
[322149171,1712851842225,-912.25,0.00032876,2]
[322149172,1712851842235,-500.0,0.00032876,2]
[322149173,1712851842247,-500.0,0.00032876,2]
[322149174,1712851842258,-548.268284,0.00032876,2]
[322149175,1712851842269,-500.0,0.00032876,2]
[322149176,1712851842282,-500.0,0.00032876,2]
[322149177,1712851842293,-500.0,0.00032876,2]
[322149178,1712851842303,-500.0,0.00032876,2]
[322149179,1712851842314,-500.0,0.00032876,2]
[322149180,1712851842324,-500.0,0.00032876,2]
[322149181,1712851842335,-500.0,0.00032876,2]
[322149182,1712851842346,-500.0,0.00032876,2]
[322149183,1712851842357,-500.0,0.00032876,2]
[322149184,1712851842369,-500.0,0.00032876,2]
[322149185,1712851842383,-500.0,0.00032876,2]
[322149186,1712851842398,-633.35,0.00032876,2]
[322149187,1712851842410,-500.0,0.00032876,2]
[322149188,1712851842421,-500.0,0.00032876,2]
[322149189,1712851842431,-500.0,0.00032876,2]
[322149190,1712851842441,-500.0,0.00032876,2]